bitfinex/quotes_SOLUSD_20240614
["timestamp","ask_amount","ask_price","bid_price","bid_amount"]
[1718333120576,6.13,147.92,147.86,0.68]
[1718333120839,6.13,147.92,147.88,0.17]
[1718333120994,6.13,147.91,147.87,0.51]
[1718333121282,20.0,147.96,147.87,0.34]
[1718333121493,6.13,147.9,147.86,0.17]
[1718333122148,6.13,147.88,147.85,0.17]
[1718333122353,6.13,147.88,147.84,6.474]
[1718333123479,6.13,147.88,147.85,0.34]
[1718333123855,6.13,147.89,147.85,0.34]
[1718333129662,100.0,147.93,147.85,0.34]
[1718333129861,6.13,147.89,147.85,0.34]
[1718333132774,107.02005597,147.96,147.85,0.34]
[1718333132968,7.02005597,147.96,147.87,0.17]
[1718333133178,6.13,147.92,147.87,6.47]
[1718333133390,6.13,147.92,147.88,0.34]
[1718333135588,6.13,147.91,147.88,0.34]
[1718333136988,6.13,147.92,147.88,0.34]
[1718333137902,15.092,147.97,147.88,0.34]
[1718333138069,6.13,147.92,147.88,0.34]
[1718333139161,20.0,147.96,147.88,0.34]
[1718333139374,6.13,147.92,147.88,0.34]
[1718333139568,6.13,147.91,147.88,0.34]
[1718333140275,20.0,147.96,147.84,6.474]
[1718333140471,6.13,147.89,147.84,6.474]
[1718333142177,6.13,147.89,147.85,0.68]
[1718333142775,100.0,147.95,147.85,0.68]
[1718333142977,6.13,147.88,147.85,0.68]
[1718333147177,6.13,147.89,147.85,0.68]
[1718333149393,20.0,147.94,147.85,0.68]
[1718333149714,6.13,147.89,147.85,0.68]
[1718333151508,20.0,147.94,147.85,0.68]
[1718333151703,6.13,147.91,147.85,6.81]
[1718333154501,6.13,147.91,147.85,0.68]
[1718333154703,6.13,147.91,147.85,6.81]
[1718333157584,6.13,147.9,147.85,6.81]
[1718333163810,7.02144097,147.96,147.86,21.3858]
[1718333163994,13.15144097,147.96,147.9,6.3]
[1718333164196,6.13,147.96,147.91,0.34]
[1718333164510,6.13,147.95,147.91,0.34]
[1718333165397,6.13,147.95,147.89,6.5408]
[1718333165398,6.13,147.95,147.89,12.6708]
[1718333165594,6.13,147.93,147.89,6.5408]
[1718333169636,6.13,147.9,147.86,15.2558]
[1718333169791,6.13,147.88,147.86,15.2558]
[1718333169991,6.13,147.89,147.86,15.2558]
[1718333171608,121.9772,147.96,147.86,15.2558]
[1718333171814,6.13,147.9,147.86,15.2558]
[1718333174525,6.13,147.89,147.86,15.2558]
[1718333176516,7.05161203,147.95,147.83,0.17]
[1718333176517,6.13,147.88,147.83,0.17]
[1718333176701,6.13,147.88,147.83,0.51]
[1718333177517,6.13,147.87,147.83,0.51]
[1718333178337,6.13,147.87,147.82,16.6861735]
[1718333178526,6.13,147.85,147.82,16.6861735]
[1718333178910,6.13,147.84,147.82,16.6861735]
[1718333179320,100.0,147.9,147.82,16.6861735]
[1718333179520,6.13,147.84,147.82,16.6861735]
[1718333180126,100.0,147.9,147.82,16.6861735]
[1718333180328,46.3796,147.91,147.83,0.17]
[1718333180329,21.8596,147.91,147.83,0.17]
[1718333180517,21.8596,147.91,147.83,0.51]
[1718333180518,6.13,147.88,147.83,0.51]
[1718333182253,6.13,147.95,147.87,6.3]
[1718333182537,6.13,147.94,147.88,6.64]
[1718333183128,6.13,147.93,147.88,0.51]
[1718333183440,6.13,147.92,147.87,6.2351]
[1718333183741,6.13,147.92,147.87,6.0651]
[1718333184437,6.13,147.9,147.84,15.9692]
[1718333184734,6.13,147.85,147.82,0.8404735]
[1718333185030,6.13,147.86,147.82,0.8404735]
[1718333186743,20.0,147.89,147.82,0.8404735]
[1718333186930,6.13,147.88,147.83,0.68]
[1718333187338,100.0,147.93,147.83,0.68]
[1718333187339,6.13,147.87,147.83,0.51]
[1718333188436,28.58901673,147.94,147.84,0.17]
[1718333188437,6.13,147.88,147.84,0.17]
[1718333189230,6.13,147.96,147.84,0.17]
[1718333189540,6.13,147.92,147.86,6.3]
[1718333190133,6.13,147.91,147.86,6.3]
[1718333190633,2.705091,147.97,147.86,6.3]
[1718333190941,6.13,147.92,147.87,0.51]
[1718333192817,6.13,147.92,147.88,0.17]
[1718333193659,7.04785477,147.97,147.88,0.17]
[1718333193959,6.13,147.97,147.91,22.5623]
[1718333194130,22.4762,148.02,147.92,6.7582]
[1718333194319,100.0,148.04,147.95,0.17]
[1718333194521,107.04460672,148.04,147.95,0.51]
[1718333194732,6.13,148.01,147.95,0.51]
[1718333195030,105.42038929,148.05,147.95,0.51]
[1718333195249,107.04972342,148.05,147.92,6.0782]
[1718333195422,118.42,148.02,147.92,6.0782]
[1718333195748,20.0,148.01,147.92,6.0782]
[1718333199546,0.17,148.0,147.92,6.0782]
[1718333199744,118.42,147.99,147.92,6.0782]
[1718333200127,18.42,147.99,147.92,6.0782]
[1718333200646,20.0,147.98,147.92,6.0782]
[1718333201022,20.0,148.0,147.92,6.0782]
[1718333203644,100.0,147.99,147.91,16.4323]
[1718333204152,20.0,147.98,147.91,16.4323]
[1718333208956,38.42,147.98,147.91,16.4323]
[1718333209160,100.0,147.97,147.91,16.4323]
[1718333209664,100.0,147.97,147.89,6.6365]
[1718333210039,20.0,147.96,147.89,6.6365]
[1718333214976,6.15,147.91,147.89,6.6365]
[1718333215374,6.15,147.91,147.87,16.5292]
[1718333215581,6.15,147.9,147.87,16.5292]
[1718333216077,6.15,147.89,147.87,16.5292]
[1718333216649,6.15,147.88,147.87,16.5292]
[1718333216848,6.15,147.88,147.85,6.3606]
[1718333217082,6.15,147.87,147.85,6.3606]
[1718333217452,6.15,147.86,147.85,6.3606]
[1718333217653,24.6,147.91,147.85,6.3606]
[1718333218078,20.0,147.9,147.85,6.3606]
[1718333219758,6.15,147.87,147.85,6.3606]
[1718333221692,20.0,147.9,147.85,6.3606]
[1718333226377,6.15,147.86,147.83,16.5292]
[1718333226584,6.15,147.84,147.83,16.5292]
[1718333227985,6.15,147.84,147.82,0.8404735]
[1718333228191,6.15,147.83,147.82,0.8404735]
[1718333229993,6.15,147.84,147.82,0.8404735]
[1718333235018,6.15,147.83,147.82,0.8404735]
[1718333236612,6.15,147.84,147.82,0.8404735]
[1718333236897,6.15,147.83,147.82,0.8404735]
[1718333240313,6.48333334,147.83,147.82,0.8404735]
[1718333243598,0.33333334,147.83,147.82,0.8404735]
[1718333245522,0.33333334,147.83,147.82,13.2983735]
[1718333245697,0.33333334,147.83,147.82,13.8083735]
[1718333247737,0.33333334,147.83,147.82,7.6583735]
[1718333248219,0.33333334,147.83,147.82,6.9783735]
[1718333248404,0.33333334,147.83,147.82,0.8404735]
[1718333249627,0.33333334,147.83,147.82,7.1604735]
[1718333249812,0.33333334,147.83,147.82,7.3304735]
[1718333250015,0.33333334,147.83,147.82,7.6704735]
[1718333251209,0.33333334,147.83,147.82,1.5204735]
[1718333251405,0.33333334,147.83,147.82,7.6704735]
[1718333256220,0.33333334,147.83,147.82,1.5204735]
[1718333256618,0.33333334,147.83,147.82,0.8404735]
[1718333275462,0.33333334,147.83,147.82,1.0104735]
[1718333275629,0.33333334,147.83,147.82,7.6704735]
[1718333280176,0.33333334,147.83,147.82,10.1734735]
[1718333280461,15.6112,147.96,147.87,15.4512]
[1718333280674,15.6112,147.96,147.9,0.17]
[1718333280838,6.5296,147.97,147.9,0.51]
[1718333281026,15.6112,147.99,147.92,0.17]
[1718333281250,15.6112,147.99,147.91,6.32]
[1718333281426,15.6112,147.99,147.91,0.17]
[1718333281427,6.15,147.96,147.91,0.17]
[1718333281630,6.15,147.96,147.91,0.34]
[1718333282345,6.15,147.95,147.91,0.34]
[1718333283463,6.15,147.96,147.91,0.34]
[1718333284048,6.15,147.97,147.92,6.32]
[1718333284257,6.15,147.97,147.93,0.51]
[1718333285536,15.6112,147.99,147.88,0.17]
[1718333285735,15.6112,147.99,147.91,0.17]
[1718333285736,6.15,147.96,147.91,0.17]
[1718333285940,6.15,147.95,147.91,0.17]
[1718333286139,15.6112,147.99,147.91,0.17]
[1718333286340,15.6112,147.99,147.91,6.32]
[1718333286537,6.15,147.97,147.93,0.17]
[1718333286736,13.24339975,148.01,147.93,0.17]
[1718333286958,6.1953,148.01,147.94,6.15]
[1718333287287,6.15,148.0,147.95,0.17]
[1718333287765,6.1953,148.01,147.95,0.17]
[1718333287940,6.15,147.99,147.95,0.17]
[1718333288652,6.1953,148.01,147.93,0.17]
[1718333288653,6.15,147.98,147.93,0.17]
[1718333288859,6.15,147.98,147.93,6.32]
[1718333289047,6.1953,148.01,147.95,0.17]
[1718333289552,6.15,147.99,147.95,0.17]
[1718333290266,15.599,148.03,147.95,0.17]
[1718333290566,6.15,148.02,147.97,0.17]
[1718333290762,6.14,148.02,147.97,0.51]
[1718333290967,7.04987285,148.05,147.97,6.65]
[1718333291174,16.3647,148.06,147.97,0.51]
[1718333291366,6.14,148.02,147.97,0.51]
[1718333291545,6.14,148.01,147.97,0.51]
[1718333292681,6.14,147.98,147.93,6.5094]
[1718333293671,6.14,147.99,147.93,12.6494]
[1718333294192,6.14,147.99,147.94,0.17]
[1718333294405,6.14,147.98,147.94,0.68]
[1718333295604,100.0,148.03,147.94,0.68]
[1718333295791,6.14,147.98,147.94,0.68]
[1718333295990,100.0,148.03,147.94,0.68]
[1718333296193,6.14,147.98,147.94,0.68]
[1718333301205,6.14,147.97,147.94,0.68]
[1718333302208,106.1185,148.03,147.94,0.68]
[1718333302601,6.14,147.98,147.94,0.68]
[1718333303122,20.0,148.02,147.94,0.68]
[1718333303312,6.14,147.99,147.94,0.68]
[1718333303628,6.14,147.98,147.94,0.68]
[1718333305411,20.0,148.02,147.94,0.68]
[1718333305590,6.14,147.98,147.94,0.34]
[1718333305910,24.56,147.98,147.89,6.5248]
[1718333306116,20.0,147.97,147.89,6.5248]
[1718333306404,6.14,147.92,147.89,6.5248]
[1718333307211,6.14,147.93,147.9,0.68]
[1718333307982,20.0,147.97,147.9,0.68]
[1718333308310,6.14,147.93,147.9,0.68]
[1718333308485,15.3101,148.01,147.9,6.82]
[1718333308686,6.14,147.97,147.92,0.17]
[1718333309013,6.14,147.97,147.92,0.68]
[1718333309598,6.14,147.96,147.92,0.68]
[1718333309800,15.3101,148.01,147.92,0.68]
[1718333310092,6.14,147.96,147.92,0.68]
[1718333311800,20.0,148.0,147.92,0.68]
[1718333312008,6.14,147.97,147.92,0.68]
[1718333312214,20.0,148.0,147.92,6.82]
[1718333312382,6.14,147.98,147.92,6.82]
[1718333314093,12.14808658,148.03,147.94,0.17]
[1718333314314,6.14,147.99,147.94,0.68]
[1718333314611,6.14,147.99,147.94,6.82]
[1718333314912,6.14,147.99,147.94,0.68]
[1718333317340,7.05356876,148.04,147.94,0.68]
[1718333317613,7.05356876,148.04,147.98,0.17]
[1718333317817,6.14,148.03,147.98,0.68]
[1718333317999,6.2188,148.07,147.98,0.68]
[1718333318187,15.89,148.09,148.0,0.17]
[1718333318382,6.14,148.04,148.0,0.34]
[1718333319012,6.14,148.01,147.99,15.4044]
[1718333319590,6.14,148.01,147.96,0.17]
[1718333319790,6.14,148.01,147.96,0.68]
[1718333320103,24.56,148.05,147.96,0.68]
[1718333320602,20.0,148.04,147.96,0.68]
[1718333323818,6.14,148.0,147.96,0.68]
[1718333324410,20.0,148.04,147.96,0.68]
[1718333324616,6.14,148.0,147.96,0.68]
[1718333325706,20.0,148.04,147.96,0.68]
[1718333325913,6.14,148.0,147.96,0.68]
[1718333326727,20.0,148.04,147.96,0.68]
[1718333326934,6.14,148.0,147.96,0.68]
[1718333327128,6.14,148.01,147.96,0.68]
[1718333327821,20.0,148.04,147.96,0.68]
[1718333328020,6.14,148.01,147.96,0.68]
[1718333328408,20.0,148.04,147.96,0.68]
[1718333328607,6.14,148.02,147.96,0.68]
[1718333328805,7.05276616,148.07,147.96,0.68]
[1718333328997,20.0,148.06,147.99,0.17]
[1718333329311,6.14,148.04,147.99,0.68]
[1718333330429,20.0,148.06,147.99,0.68]
[1718333330430,7.05276616,148.07,147.99,6.82]
[1718333330635,15.89,148.09,147.99,6.82]
[1718333330939,6.14,148.05,147.99,6.82]
[1718333331165,15.89,148.09,147.99,6.82]
[1718333331315,6.14,148.05,147.99,6.82]
[1718333331817,15.89,148.09,147.99,6.82]
[1718333332134,7.05172919,148.1,148.01,6.31]
[1718333332304,152.52512367,148.12,148.02,0.34]
[1718333332499,6.14,148.07,148.02,0.34]
[1718333332830,6.14,148.06,148.02,0.34]
[1718333333003,6.14,148.05,148.02,0.34]
[1718333333309,6.14,148.04,148.0,21.0683]
[1718333333722,100.0,148.09,148.0,21.0683]
[1718333333921,6.14,148.05,148.0,21.0683]
[1718333334326,100.0,148.09,148.0,21.0683]
[1718333334531,6.14,148.04,148.0,21.0683]
[1718333335432,20.0,148.08,148.0,21.0683]
[1718333335730,6.14,148.04,148.0,21.0683]
[1718333335912,6.14,148.05,148.0,21.0683]
[1718333336327,6.14,148.05,148.01,0.51]
[1718333337129,20.0,148.08,148.01,0.51]
[1718333337130,20.0,148.08,148.02,0.17]
[1718333337304,20.0,148.08,148.02,6.31]
[1718333337504,6.14,148.08,148.02,6.31]
[1718333337931,6.14,148.07,148.02,0.17]
[1718333338118,6.14,148.06,148.02,0.17]
[1718333340136,6.14,148.07,148.02,0.17]
[1718333340611,20.0,148.1,148.03,0.17]
[1718333340813,6.14,148.08,148.03,0.51]
[1718333341006,6.14,148.08,148.04,0.17]
[1718333341208,20.0,148.1,148.05,0.17]
[1718333341523,7.05231446,148.12,148.06,21.42]
[1718333341841,22.2375,148.15,148.06,21.42]
[1718333342145,6.14,148.12,148.06,21.42]
[1718333342512,22.2375,148.15,148.06,21.42]
[1718333342839,6.14,148.12,148.06,21.42]
[1718333343230,22.2375,148.15,148.06,21.42]
[1718333343532,6.14,148.11,148.06,15.28]
[1718333343924,6.14,148.1,148.06,15.28]
[1718333344624,22.2375,148.15,148.06,15.28]
[1718333344827,6.14,148.1,148.06,15.28]
[1718333345137,6.14,148.11,148.06,15.28]
[1718333346636,22.2375,148.15,148.06,15.28]
[1718333346824,6.14,148.11,148.06,15.28]
[1718333347229,6.14,148.11,148.07,0.17]
[1718333347535,6.14,148.16,148.1,22.7241]
[1718333347734,6.14,148.16,148.11,0.17]
[1718333347914,6.14,148.16,148.11,0.34]
[1718333348446,6.14,148.15,148.11,0.34]
[1718333348814,100.0,148.16,148.1,16.5841]
[1718333349014,6.14,148.12,148.1,16.5841]
[1718333349541,6.14,148.12,148.08,6.1142]
[1718333349960,6.14,148.1,148.06,15.5563]
[1718333350162,6.14,148.11,148.06,15.5563]
[1718333351057,6.14,148.11,148.07,0.17]
[1718333351238,100.0,148.14,148.06,15.5563]
[1718333351447,6.14,148.08,148.06,15.5563]
[1718333351779,24.56,148.12,148.06,15.5563]
[1718333352369,20.0,148.11,148.06,15.5563]
[1718333352541,20.0,148.11,148.05,6.3993]
[1718333353173,6.14,148.1,148.06,0.34]
[1718333353373,6.14,148.1,148.05,6.3993]
[1718333353863,20.0,148.11,148.05,6.3993]
[1718333354041,6.14,148.1,148.05,6.3993]
[1718333354239,6.14,148.09,148.05,6.3993]
[1718333354445,6.14,148.08,148.05,6.3993]
[1718333355963,106.631,148.18,148.06,0.34]
[1718333355964,6.14,148.1,148.06,0.34]
[1718333357769,6.14,148.08,148.05,6.3993]
[1718333357957,6.14,148.08,148.04,0.17]
[1718333358149,6.14,148.12,148.04,0.17]
[1718333358349,6.14,148.07,148.03,0.34]
[1718333358689,6.14,148.06,148.02,22.3704]
[1718333359444,100.0,148.11,148.02,22.3704]
[1718333359649,6.14,148.07,148.02,22.3704]
[1718333359860,6.14,148.07,148.03,0.17]
[1718333360466,0.33333333,148.06,148.03,0.17]
[1718333361647,6.14,148.05,148.02,22.3704]
[1718333361855,6.14,148.04,148.02,15.84]
[1718333364762,6.14,148.04,147.98,22.5041]
[1718333364964,6.14,148.05,147.98,22.5041]
[1718333365166,6.14,148.05,147.98,16.3464]
[1718333365167,124.56,148.05,147.98,16.3464]
[1718333365361,6.14,148.0,147.98,16.3464]
[1718333366382,6.14,147.99,147.94,21.7409]
[1718333366679,20.0,148.04,147.94,27.8809]
[1718333366867,6.14,148.0,147.94,27.8809]
[1718333367068,6.14,148.0,147.94,21.7409]
[1718333367268,6.14,147.99,147.94,21.7409]
[1718333367584,6.14,147.99,147.95,0.34]
[1718333368481,6.14,147.98,147.95,0.34]
[1718333368851,8.6402,147.99,147.95,0.34]
[1718333369274,2.5003,147.98,147.95,0.34]
[1718333369980,2.5001,148.0,147.96,0.17]
[1718333370196,2.5001,148.0,147.97,0.17]
[1718333370372,2.5001,148.0,147.97,0.51]
[1718333370883,2.5002,147.99,147.97,0.51]
[1718333371192,2.5002,147.99,147.97,0.17]
[1718333371865,20.0,148.04,147.97,0.17]
[1718333372064,2.5001,148.0,147.97,0.51]
[1718333372894,2.4998,148.01,147.98,0.17]
[1718333373098,2.4998,148.01,147.98,0.51]
[1718333374309,24.9987,148.04,147.98,0.51]
[1718333374310,2.4997,148.02,148.0,15.7378]
[1718333374495,2.4998,148.01,148.0,15.7378]
[1718333374701,2.4998,148.01,148.0,16.2478]
[1718333375005,2.4998,148.01,148.0,16.4178]
[1718333375183,2.4997,148.02,148.0,16.4178]
[1718333375392,4.9981,148.06,148.02,0.17]
[1718333376819,7.0523028,148.1,148.01,6.65]
[1718333376820,6.14,148.05,148.01,0.34]
[1718333377117,100.0,148.09,148.0,22.2409]
[1718333377624,2.4998,148.01,148.0,22.4109]
[1718333379085,2.4998,148.01,148.0,15.9078]
[1718333380119,2.4997,148.02,148.0,15.9078]
[1718333380495,20.0,148.08,148.0,15.7378]
[1718333380689,2.4998,148.01,148.0,15.7378]
[1718333381318,2.5001,148.0,147.98,0.17]
[1718333381617,2.5001,148.0,147.98,0.68]
[1718333384023,2.4999,148.01,147.98,0.68]
[1718333384393,2.4998,148.01,147.98,0.68]
[1718333384828,2.4998,148.01,147.98,0.51]
[1718333385008,4.9993,148.02,147.97,6.0764]
[1718333385320,2.5001,148.0,147.97,6.0764]
[1718333388013,2.5001,147.99,147.97,6.0764]
[1718333389122,2.5003,147.98,147.96,16.655]
[1718333390231,2.5002,147.99,147.96,16.655]
[1718333392223,5.0,148.0,147.95,0.51]
[1718333392527,2.5005,147.97,147.95,0.51]
[1718333393916,2.5004,147.98,147.95,0.51]
[1718333396542,2.5002,147.99,147.95,0.51]
[1718333398840,8.6402,147.99,147.95,0.51]
[1718333400733,2.5006,147.97,147.93,28.5344]
[1718333400925,2.5013,147.93,147.89,22.4256]
[1718333401115,6.14,147.93,147.89,22.4256]
[1718333401450,8.6412,147.93,147.89,22.4256]
[1718333402331,6.14,147.93,147.89,22.4256]
[1718333402532,6.14,147.93,147.9,0.68]
[1718333402738,15.4097,147.99,147.9,6.82]
[1718333402739,2.5008,147.96,147.9,6.82]
[1718333402911,6.14,147.95,147.9,9.3216]
[1718333403112,2.5008,147.95,147.9,6.82]
[1718333404539,2.5006,147.97,147.92,0.17]
[1718333404841,2.5005,147.97,147.92,6.82]
[1718333405010,2.5005,147.97,147.93,6.48]
[1718333405213,8.6404,147.98,147.94,0.17]
[1718333405436,2.5005,147.97,147.94,0.17]
[1718333408225,5.0001,148.0,147.94,0.17]
[1718333408535,2.5,148.0,147.95,6.14]
[1718333408846,2.5002,147.99,147.96,0.68]
[1718333409623,6.14,148.01,147.96,0.68]
[1718333409624,2.5003,147.98,147.96,0.68]
[1718333409822,2.5005,147.97,147.96,0.68]
[1718333410239,2.5007,147.96,147.95,0.17]
[1718333410548,2.5007,147.96,147.95,0.51]
[1718333410960,2.5005,147.97,147.95,0.51]
[1718333411620,2.5006,147.96,147.95,0.51]
[1718333412422,6.14,147.98,147.95,0.51]
[1718333412630,2.5005,147.97,147.95,0.51]
[1718333415132,115.2368,148.04,147.96,0.17]
[1718333415133,2.4999,148.01,147.96,0.17]
[1718333415446,6.14,148.02,147.97,0.17]
[1718333415623,2.5,148.0,147.97,0.51]
[1718333415824,2.5,148.0,147.98,0.17]
[1718333416053,2.5,148.0,147.98,0.51]
[1718333417351,22.68883281,148.07,147.99,0.17]
[1718333417553,2.4995,148.03,147.99,6.65]
[1718333417763,2.4995,148.03,148.0,0.17]
[1718333417952,2.4995,148.03,148.01,0.17]
[1718333418261,2.4996,148.02,148.01,0.17]
[1718333419338,6.14,148.03,147.94,22.8672]
[1718333419538,2.5,148.0,147.95,6.14]
[1718333419745,8.6399,148.01,147.95,8.6408]
[1718333419947,8.6399,148.01,147.95,2.5008]
[1718333420129,2.5,148.0,147.96,6.14]
[1718333420330,2.5004,147.98,147.94,29.0072]
[1718333420748,6.14,148.0,147.95,0.34]
[1718333420950,2.5,148.0,147.95,6.48]
[1718333421156,2.5001,147.99,147.95,0.34]
[1718333421544,100.0,148.03,147.95,0.17]
[1718333421743,100.0,148.03,147.95,0.34]
[1718333421744,6.14,147.98,147.95,0.34]
[1718333421942,2.5005,147.97,147.94,22.8672]
[1718333422142,8.6403,147.98,147.94,22.8672]
[1718333423161,2.5003,147.98,147.95,0.34]
[1718333423550,2.5005,147.97,147.95,0.34]
[1718333424367,2.5007,147.96,147.94,23.0372]
[1718333424567,2.5011,147.94,147.9,21.2202]
[1718333424773,8.6411,147.94,147.9,21.2202]
[1718333424952,2.5011,147.93,147.9,21.2202]
[1718333425471,6.14,147.93,147.86,21.2202]
[1718333425637,6.14,147.91,147.86,21.2202]
[1718333426293,2.5014,147.92,147.86,23.7225]
[1718333426443,6.14,147.91,147.86,21.2202]
[1718333426765,6.14,147.91,147.86,23.7224]
[1718333426956,2.5013,147.93,147.86,23.7224]
[1718333427267,2.501,147.94,147.87,2.6721]
[1718333427455,2.501,147.94,147.88,0.51]
[1718333427650,2.5012,147.93,147.89,0.17]
[1718333427959,2.5011,147.94,147.89,0.17]
[1718333428867,2.5009,147.95,147.89,0.17]
[1718333429239,20.0,147.97,147.89,0.17]
[1718333429463,23.4508,147.98,147.89,0.17]
[1718333429464,5.0008,147.98,147.89,0.17]
[1718333429670,2.5009,147.95,147.89,2.6718]
[1718333429843,2.5009,147.95,147.9,0.51]
[1718333430042,2.5009,147.95,147.91,0.17]
[1718333432468,5.0001,148.0,147.93,0.17]
[1718333432675,15.0767,148.03,147.93,0.68]
[1718333432878,15.0767,148.07,147.95,0.17]
[1718333433060,2.5,148.0,147.95,0.17]
[1718333433262,2.4999,148.01,147.95,2.6708]
[1718333433464,40.57340615,148.07,147.97,0.17]
[1718333433667,2.4998,148.01,147.97,0.51]
[1718333433985,2.5,148.0,147.98,0.17]
[1718333434169,2.5,148.0,147.99,0.17]
[1718333434356,2.4999,148.01,147.99,0.34]
[1718333438877,133.5267,148.07,147.96,0.17]
[1718333438878,100.0,148.05,147.96,0.17]
[1718333439183,2.5002,147.99,147.96,0.17]
[1718333440096,2.5,148.0,147.96,0.17]
[1718333441764,2.4997,148.02,147.96,2.6706]
[1718333442060,2.4997,148.02,147.98,0.17]
[1718333442786,2.4993,148.05,147.98,24.5848]
[1718333442988,387.5189,148.11,148.0,0.17]
[1718333443170,2.4997,148.02,148.0,0.17]
[1718333444375,2.4995,148.03,148.0,0.17]
[1718333445690,7.04927233,148.1,148.0,0.17]
[1718333445861,387.5189,148.11,148.0,0.17]
[1718333445862,2.4992,148.05,148.0,0.17]
[1718333446988,27.0488158,148.1,148.0,0.17]
[1718333446989,7.0488158,148.1,148.0,0.17]
[1718333447196,2.4988,148.07,148.02,0.17]
[1718333447368,2.4987,148.08,148.02,3.1796]
[1718333447671,4.9967,148.1,148.04,0.17]
[1718333447874,4.9967,148.1,148.04,0.34]
[1718333448079,4.9967,148.1,148.05,0.17]
[1718333448287,2.4989,148.06,148.05,0.17]
[1718333448478,2.4989,148.06,148.05,0.51]
[1718333448779,2.4989,148.07,148.05,0.51]
[1718333451000,2.4989,148.06,148.03,0.17]
[1718333451180,2.4987,148.08,148.04,0.17]
[1718333451492,2.4989,148.07,148.04,0.34]
[1718333452490,2.4991,148.05,147.99,2.5001]
[1718333452667,2.4992,148.05,147.99,2.67]
[1718333452988,2.4992,148.05,148.0,0.51]
[1718333453206,2.4992,148.05,148.01,0.17]
[1718333453695,2.4991,148.05,148.01,0.17]
[1718333455693,2.499,148.06,148.01,0.17]
[1718333457501,2.4988,148.07,148.01,2.6697]
[1718333457800,2.4988,148.07,148.03,0.17]
[1718333458371,118.45,148.11,148.03,0.17]
[1718333458597,2.4992,148.05,148.03,0.17]
[1718333460293,2.499,148.06,148.03,0.17]
[1718333461878,2.4991,148.05,148.03,0.17]
[1718333463299,2.4996,148.02,147.98,21.9146]
[1718333463504,2.4998,148.01,147.99,0.17]
[1718333463808,8.6395,148.03,147.99,0.17]
[1718333464097,2.4995,148.03,147.99,0.17]
[1718333464682,2.4995,148.03,148.0,0.17]
[1718333465000,2.4995,148.03,148.0,0.51]